Workbook

Sheet Inizio
B1: INFORMAZIONI SUL MODELLO
B2: Usare questo modello per eseguire una verifica giornaliera dell'elenco di controllo.
B3: Prepara una squadra con un massimo di quattro giocatori.
B4: Digitare i nomi dei giocatori e decidere quali obiettivi si vuole raggiungere ogni giorno. Gli obiettivi devono essere qualcosa che è possibile raggiungere su una scala da 1 a 5. Ad esempio, se si mangia in modo salutare tutto il giorno, si ottiene 5 e se si aggiunge uno spuntino non salutare, si ottiene 4 e così via.
B5: Ogni persona lavorerà per raggiungere gli stessi obiettivi. Digitare gli obiettivi sotto il nome di ogni persona.
B6: Selezionare "Condividi" nell'angolo in alto a destra o premere ALT+ZS per condividere il documento con i membri del team.
B7: Ogni giorno, i giocatori accedono al documento condiviso e immettono il punteggio che ritengono di aver guadagnato.
B8: Alla fine della settimana, selezionare Settimana 2 e compilare di nuovo i nomi e gli obiettivi.
B9: Ripetere per il numero di settimane che si vuole che la sfida duri.
B10: I grafici ad anello per tutti i giocatori vengono aggiornati automaticamente in tutti i fogli settimanali.
B11: Nota:
B12: Nella colonna A di tutti i fogli di lavoro sono disponibili altre istruzioni. Questo testo è stato nascosto intenzionalmente. Per rimuovere il testo, selezionare la colonna A, quindi scegliere ELIMINA.
B13: Per altre informazioni sulle tabelle, premere MAIUSC, quindi F10 in una tabella, selezionare l'opzione TABELLA, quindi selezionare TESTO ALTERNATIVO.

Sheet Settimana 1
B1: SETTIMANA 1
B2: VERIFICA GIORNALIERA DELL’ELENCO DI CONTROLLO
C3: =MIN(1,1-C4) -> 10% | E3: =MIN(1,1-E4) -> 23% | G3: =MIN(1,1-G4) -> 23% | I3: =MIN(1,1-I4) -> 22%
C4: =SUM('[1]Settimana 1'!$B$10:$I$14)/(ROWS('[1]Settimana 1'!$B$10:$I$14)*7*5) -> 90% | E4: =SUM('[1]Settimana 1'!$B$18:$I$22)/(ROWS('[1]Settimana 1'!$B$10:$I$14)*7*5) -> 77% | G4: =SUM('[1]Settimana 1'!$B$26:$I$30)/(ROWS('[1]Settimana 1'!$B$10:$I$14)*7*5) -> 77% | I4: =SUM('[1]Settimana 1'!$B$34:$I$38)/(ROWS('[1]Settimana 1'!$B$10:$I$14)*7*5) -> 78%
C5: PUPETTA | E5: DIEGO | G5: =Name3 -> MATTIA | I5: =Name4 -> GIORGIA
B7: Immettere un punteggio compreso tra 0 e 5 per ogni elemento dell'elenco di controllo.
C8: I grafici rappresentano il conteggio totale accumulato e aggiornato per ogni membro del team.
B9: PUPETTA | C9: Domenica | D9: Lunedì | E9: Martedì | F9: Mercoledì | G9: Giovedì | H9: Venerdì | I9: Sabato
B10: Alimentazione | C10: 5 | D10: 4 | E10: 5 | F10: 4 | G10: 5 | H10: 5 | I10: 5
B11: Esercizio fisico | C11: 4 | D11: 3 | E11: 3 | F11: 5 | G11: 5 | H11: 5 | I11: 5
B12: Meno TV | C12: 4 | D12: 4 | E12: 3 | F12: 5 | G12: 5 | H12: 5 | I12: 5
B13: Sonno | C13: 4 | D13: 5 | E13: 5 | F13: 5 | G13: 5 | H13: 5 | I13: 5
B14: Atti di generosità | C14: 4 | D14: 3 | E14: 3 | F14: 5 | G14: 5 | H14: 5 | I14: 5
B17: DIEGO | C17: Domenica | D17: Lunedì | E17: Martedì | F17: Mercoledì | G17: Giovedì | H17: Venerdì | I17: Sabato
B18: Alimentazione | C18: 5 | D18: 5 | E18: 5 | F18: 5 | G18: 1 | H18: 5 | I18: 2
B19: Esercizio fisico | C19: 3 | D19: 5 | E19: 4 | F19: 3 | G19: 4 | H19: 5 | I19: 3
B20: Meno TV | C20: 4 | D20: 5 | E20: 5 | F20: 4 | G20: 3 | H20: 3 | I20: 3
B21: Sonno | C21: 4 | D21: 4 | E21: 4 | F21: 3 | G21: 4 | H21: 5 | I21: 4
B22: Atti di generosità | C22: 3 | D22: 4 | E22: 3 | F22: 4 | G22: 3 | H22: 4 | I22: 3
B25: MATTIA | C25: Domenica | D25: Lunedì | E25: Martedì | F25: Mercoledì | G25: Giovedì | H25: Venerdì | I25: Sabato
B26: Alimentazione | C26: 4 | D26: 3 | E26: 3 | F26: 4 | G26: 5 | H26: 4 | I26: 4
B27: Esercizio fisico | C27: 3 | D27: 5 | E27: 5 | F27: 5 | G27: 5 | H27: 5 | I27: 3
B28: Meno TV | C28: 2 | D28: 4 | E28: 3 | F28: 3 | G28: 3 | H28: 4 | I28: 4
B29: Sonno | C29: 4 | D29: 5 | E29: 5 | F29: 5 | G29: 5 | H29: 4 | I29: 5
B30: Atti di generosità | C30: 4 | D30: 3 | E30: 2 | F30: 2 | G30: 3 | H30: 2 | I30: 4
B33: GIORGIA | C33: Domenica | D33: Lunedì | E33: Martedì | F33: Mercoledì | G33: Giovedì | H33: Venerdì | I33: Sabato
B34: Alimentazione | C34: 5 | D34: 5 | E34: 5 | F34: 5 | G34: 5 | H34: 5 | I34: 5
B35: Esercizio fisico | C35: 2 | D35: 3 | E35: 4 | F35: 4 | G35: 3 | H35: 4 | I35: 4
B36: Meno TV | C36: 3 | D36: 4 | E36: 5 | F36: 5 | G36: 4 | H36: 2 | I36: 2
B37: Sonno | C37: 4 | D37: 4 | E37: 4 | F37: 3 | G37: 5 | H37: 4 | I37: 4
B38: Atti di generosità | C38: 4 | D38: 3 | E38: 4 | F38: 3 | G38: 4 | H38: 3 | I38: 3

Sheet Settimana 2
B1: SETTIMANA 2
B2: VERIFICA GIORNALIERA DELL’ELENCO DI CONTROLLO
C3: =MIN(1,1-C4) -> 18% | E3: =MIN(1,1-E4) -> 30% | G3: =MIN(1,1-G4) -> 35% | I3: =MIN(1,1-I4) -> 38%
C4: =SUM('[2]Settimana 2'!$B$10:$I$14)/(ROWS('[2]Settimana 2'!$B$10:$I$14)*7*5) -> 82% | E4: =SUM('[2]Settimana 2'!$B$18:$I$22)/(ROWS('[2]Settimana 2'!$B$10:$I$14)*7*5) -> 70% | G4: =SUM('[2]Settimana 2'!$B$26:$I$30)/(ROWS('[2]Settimana 2'!$B$10:$I$14)*7*5) -> 65% | I4: =SUM('[2]Settimana 2'!$B$34:$I$38)/(ROWS('[2]Settimana 2'!$B$10:$I$14)*7*5) -> 62%
C5: PUPETTA | E5: DIEGO | G5: =Person3Week2[[#Headers],[MATTIA]] -> MATTIA | I5: =Person4Week2[[#Headers],[GIORGIA]] -> GIORGIA
B7: Immettere un punteggio compreso tra 0 e 5 per ogni elemento dell'elenco di controllo.
C8: I grafici rappresentano il conteggio totale accumulato e aggiornato per ogni membro del team.
B9: PUPETTA | C9: Domenica | D9: Lunedì | E9: Martedì | F9: Mercoledì | G9: Giovedì | H9: Venerdì | I9: Sabato
B10: Alimentazione | C10: 1 | D10: 3 | E10: 4 | F10: 5 | G10: 3 | H10: 2 | I10: 1
B11: Esercizio fisico | C11: 4 | D11: 3 | E11: 3 | F11: 5 | G11: 5 | H11: 5 | I11: 5
B12: Meno TV | C12: 4 | D12: 4 | E12: 3 | F12: 5 | G12: 5 | H12: 5 | I12: 5
B13: Sonno | C13: 4 | D13: 5 | E13: 5 | F13: 5 | G13: 5 | H13: 5 | I13: 5
B14: Atti di generosità | C14: 4 | D14: 3 | E14: 3 | F14: 5 | G14: 5 | H14: 5 | I14: 5
B17: DIEGO | C17: Domenica | D17: Lunedì | E17: Martedì | F17: Mercoledì | G17: Giovedì | H17: Venerdì | I17: Sabato
B18: Alimentazione | C18: 2 | D18: 3 | E18: 2 | F18: 3 | G18: 2 | H18: 3 | I18: 2
B19: Esercizio fisico | C19: 3 | D19: 5 | E19: 4 | F19: 3 | G19: 4 | H19: 5 | I19: 3
B20: Meno TV | C20: 4 | D20: 5 | E20: 5 | F20: 4 | G20: 3 | H20: 3 | I20: 3
B21: Sonno | C21: 4 | D21: 4 | E21: 4 | F21: 3 | G21: 4 | H21: 5 | I21: 4
B22: Atti di generosità | C22: 3 | D22: 4 | E22: 3 | F22: 4 | G22: 3 | H22: 4 | I22: 3
B25: MATTIA | C25: Domenica | D25: Lunedì | E25: Martedì | F25: Mercoledì | G25: Giovedì | H25: Venerdì | I25: Sabato
B26: Alimentazione | C26: 1 | D26: 1 | E26: 1 | F26: 1 | G26: 1 | H26: 1 | I26: 1
B27: Esercizio fisico | C27: 3 | D27: 5 | E27: 5 | F27: 5 | G27: 5 | H27: 5 | I27: 3
B28: Meno TV | C28: 2 | D28: 4 | E28: 3 | F28: 3 | G28: 3 | H28: 4 | I28: 4
B29: Sonno | C29: 4 | D29: 5 | E29: 5 | F29: 5 | G29: 5 | H29: 4 | I29: 5
B30: Atti di generosità | C30: 4 | D30: 3 | E30: 2 | F30: 2 | G30: 3 | H30: 2 | I30: 4
B33: GIORGIA | C33: Domenica | D33: Lunedì | E33: Martedì | F33: Mercoledì | G33: Giovedì | H33: Venerdì | I33: Sabato
B34: Alimentazione | C34: 1 | D34: 1 | E34: 1 | F34: 1 | G34: 1 | H34: 1 | I34: 1
B35: Esercizio fisico | C35: 2 | D35: 3 | E35: 4 | F35: 4 | G35: 3 | H35: 4 | I35: 4
B36: Meno TV | C36: 3 | D36: 4 | E36: 5 | F36: 5 | G36: 4 | H36: 2 | I36: 2
B37: Sonno | C37: 4 | D37: 4 | E37: 4 | F37: 3 | G37: 5 | H37: 4 | I37: 4
B38: Atti di generosità | C38: 4 | D38: 3 | E38: 4 | F38: 3 | G38: 4 | H38: 3 | I38: 3

Sheet Settimana 3
B1: SETTIMANA 3
B2: VERIFICA GIORNALIERA DELL’ELENCO DI CONTROLLO
C3: =MIN(1,1-C4) -> 0.1885714286 | E3: =MIN(1,1-E4) -> 0.2228571429 | G3: =MIN(1,1-G4) -> 0.1942857143 | I3: =MIN(1,1-I4) -> 0.3485714286
C4: =SUM('[3]Settimana 3'!$B$10:$I$14)/(ROWS('[3]Settimana 3'!$B$10:$I$14)*7*5) -> 0.8114285714 | E4: =SUM('[3]Settimana 3'!$B$18:$I$22)/(ROWS('[3]Settimana 3'!$B$10:$I$14)*7*5) -> 0.7771428571 | G4: =SUM('[3]Settimana 3'!$B$26:$I$30)/(ROWS('[3]Settimana 3'!$B$10:$I$14)*7*5) -> 0.8057142857 | I4: =SUM('[3]Settimana 3'!$B$34:$I$38)/(ROWS('[3]Settimana 3'!$B$10:$I$14)*7*5) -> 0.6514285714
C5: PUPETTA | E5: DIEGO | G5: =Person3Week3[[#Headers],[MATTIA]] -> MATTIA | I5: =Person4Week3[[#Headers],[GIORGIA]] -> GIORGIA
B7: Immettere un punteggio compreso tra 0 e 5 per ogni elemento dell'elenco di controllo.
C8: I grafici rappresentano il conteggio totale accumulato e aggiornato per ogni membro del team.
B9: PUPETTA | C9: Domenica | D9: Lunedì | E9: Martedì | F9: Mercoledì | G9: Giovedì | H9: Venerdì | I9: Sabato
B10: Alimentazione | C10: 5 | D10: 5 | E10: 5 | F10: 5 | G10: 5 | H10: 5 | I10: 5
B11: Esercizio fisico | C11: 3 | D11: 5 | E11: 5 | F11: 5 | G11: 5 | H11: 5 | I11: 3
B12: Meno TV | C12: 2 | D12: 4 | E12: 3 | F12: 3 | G12: 3 | H12: 4 | I12: 4
B13: Sonno | C13: 4 | D13: 5 | E13: 5 | F13: 5 | G13: 5 | H13: 4 | I13: 5
B14: Atti di generosità | C14: 4 | D14: 3 | E14: 2 | F14: 2 | G14: 3 | H14: 2 | I14: 4
B17: DIEGO | C17: Domenica | D17: Lunedì | E17: Martedì | F17: Mercoledì | G17: Giovedì | H17: Venerdì | I17: Sabato
B18: Alimentazione | C18: 5 | D18: 5 | E18: 5 | F18: 5 | G18: 5 | H18: 5 | I18: 5
B19: Esercizio fisico | C19: 2 | D19: 3 | E19: 4 | F19: 4 | G19: 3 | H19: 4 | I19: 4
B20: Meno TV | C20: 3 | D20: 4 | E20: 5 | F20: 5 | G20: 4 | H20: 2 | I20: 2
B21: Sonno | C21: 4 | D21: 4 | E21: 4 | F21: 3 | G21: 5 | H21: 4 | I21: 4
B22: Atti di generosità | C22: 4 | D22: 3 | E22: 4 | F22: 3 | G22: 4 | H22: 3 | I22: 3
B25: MATTIA | C25: Domenica | D25: Lunedì | E25: Martedì | F25: Mercoledì | G25: Giovedì | H25: Venerdì | I25: Sabato
B26: Alimentazione | C26: 5 | D26: 5 | E26: 5 | F26: 5 | G26: 5 | H26: 5 | I26: 5
B27: Esercizio fisico | C27: 3 | D27: 5 | E27: 4 | F27: 3 | G27: 4 | H27: 5 | I27: 3
B28: Meno TV | C28: 4 | D28: 5 | E28: 5 | F28: 4 | G28: 3 | H28: 3 | I28: 3
B29: Sonno | C29: 4 | D29: 4 | E29: 4 | F29: 3 | G29: 4 | H29: 5 | I29: 4
B30: Atti di generosità | C30: 3 | D30: 4 | E30: 3 | F30: 4 | G30: 3 | H30: 4 | I30: 3
B33: GIORGIA | C33: Domenica | D33: Lunedì | E33: Martedì | F33: Mercoledì | G33: Giovedì | H33: Venerdì | I33: Sabato
B34: Alimentazione | C34: 1 | D34: 1 | E34: 1 | F34: 1 | G34: 1 | H34: 1 | I34: 1
B35: Esercizio fisico | C35: 3 | D35: 5 | E35: 5 | F35: 5 | G35: 5 | H35: 5 | I35: 3
B36: Meno TV | C36: 2 | D36: 4 | E36: 3 | F36: 3 | G36: 3 | H36: 4 | I36: 4
B37: Sonno | C37: 4 | D37: 5 | E37: 5 | F37: 5 | G37: 5 | H37: 4 | I37: 5
B38: Atti di generosità | C38: 4 | D38: 3 | E38: 2 | F38: 2 | G38: 3 | H38: 2 | I38: 4

Sheet Settimana 4
B1: SETTIMANA 4
B2: VERIFICA GIORNALIERA DELL’ELENCO DI CONTROLLO
C3: =MIN(1,1-C4) -> 42% | E3: =MIN(1,1-E4) -> 38% | G3: =MIN(1,1-G4) -> 55% | I3: =MIN(1,1-I4) -> 36%
C4: =SUM('[4]Settimana 4'!$B$10:$I$14)/(ROWS('[4]Settimana 4'!$B$10:$I$14)*7*5) -> 58% | E4: =SUM('[4]Settimana 4'!$B$18:$I$22)/(ROWS('[4]Settimana 4'!$B$10:$I$14)*7*5) -> 62% | G4: =SUM('[4]Settimana 4'!$B$26:$I$30)/(ROWS('[4]Settimana 4'!$B$10:$I$14)*7*5) -> 45% | I4: =SUM('[4]Settimana 4'!$B$34:$I$38)/(ROWS('[4]Settimana 4'!$B$10:$I$14)*7*5) -> 64%
C5: PUPETTA | E5: DIEGO | G5: =Person3Week4[[#Headers],[MATTIA]] -> MATTIA | I5: =Person4Week4[[#Headers],[GIORGIA]] -> GIORGIA
B7: Immettere un punteggio compreso tra 0 e 5 per ogni elemento dell'elenco di controllo.
C8: I grafici rappresentano il conteggio totale accumulato e aggiornato per ogni membro del team.
B9: PUPETTA | C9: Domenica | D9: Lunedì | E9: Martedì | F9: Mercoledì | G9: Giovedì | H9: Venerdì | I9: Sabato
B10: Alimentazione | C10: 2 | D10: 2 | E10: 2 | F10: 2 | G10: 2 | H10: 2 | I10: 2
B11: Esercizio fisico | C11: 3 | D11: 2 | E11: 5 | F11: 3 | G11: 4 | H11: 2 | I11: 4
B12: Meno TV | C12: 3 | D12: 4 | E12: 4 | F12: 3 | G12: 3 | H12: 2 | I12: 1
B13: Sonno | C13: 3 | D13: 4 | E13: 5 | F13: 4 | G13: 3 | H13: 2 | I13: 1
B14: Atti di generosità | C14: 3 | D14: 2 | E14: 5 | F14: 3 | G14: 4 | H14: 2 | I14: 4
B17: DIEGO | C17: Domenica | D17: Lunedì | E17: Martedì | F17: Mercoledì | G17: Giovedì | H17: Venerdì | I17: Sabato
B18: Alimentazione | C18: 4 | D18: 4 | E18: 4 | F18: 4 | G18: 4 | H18: 4 | I18: 4
B19: Esercizio fisico | C19: 3 | D19: 4 | E19: 4 | F19: 3 | G19: 3 | H19: 2 | I19: 1
B20: Meno TV | C20: 2 | D20: 2 | E20: 2 | F20: 2 | G20: 2 | H20: 2 | I20: 2
B21: Sonno | C21: 3 | D21: 2 | E21: 5 | F21: 3 | G21: 4 | H21: 2 | I21: 4
B22: Atti di generosità | C22: 3 | D22: 2 | E22: 5 | F22: 3 | G22: 4 | H22: 2 | I22: 4
B25: MATTIA | C25: Domenica | D25: Lunedì | E25: Martedì | F25: Mercoledì | G25: Giovedì | H25: Venerdì | I25: Sabato
B26: Alimentazione | C26: 3 | D26: 3 | E26: 3 | F26: 3 | G26: 3 | H26: 4 | I26: 3
B27: Esercizio fisico | C27: 3 | D27: 4 | E27: 4 | F27: 3 | G27: 3 | H27: 2 | I27: 1
B28: Meno TV | C28: 2 | D28: 2 | E28: 2 | F28: 2 | G28: 2 | H28: 2 | I28: 2
B29: Sonno | C29: 3 | D29: 2 | E29: 5 | F29: 3 | G29: 4 | H29: 2 | I29: 4
B30: Atti di generosità
B33: GIORGIA | C33: Domenica | D33: Lunedì | E33: Martedì | F33: Mercoledì | G33: Giovedì | H33: Venerdì | I33: Sabato
B34: Alimentazione | C34: 5 | D34: 5 | E34: 5 | F34: 5 | G34: 5 | H34: 5 | I34: 5
B35: Esercizio fisico | C35: 3 | D35: 4 | E35: 4 | F35: 3 | G35: 3 | H35: 2 | I35: 1
B36: Meno TV | C36: 2 | D36: 2 | E36: 2 | F36: 2 | G36: 2 | H36: 2 | I36: 2
B37: Sonno | C37: 3 | D37: 2 | E37: 5 | F37: 3 | G37: 4 | H37: 2 | I37: 4
B38: Atti di generosità | C38: 3 | D38: 4 | E38: 4 | F38: 3 | G38: 3 | H38: 2 | I38: 1
